[Event "2026 Biel Blitz Open"]
[Site "Biel, CH"]
[Date "2026.07.19"]
[Round "12"]
[White "Alexakis, Dimitrios"]
[Black "Langner, Robin"]
[Result "0-1"]
[Board "31"]
[TimeControl "180+2"]
[WhiteFideId "4200527"]
[BlackFideId "34606190"]
[WhiteElo "1895"]
[BlackElo "2059"]
[WhiteClock "0:00:05"]
[BlackClock "0:00:06"]
[Variant "Standard"]
[EndDate "2026.07.19"]
[EndTime "15:58:26"]

1. e4 {[%clk 0:03:02]}  c5 {[%clk 0:03:04]} 2. Nf3 {[%clk 0:03:02]}  d6 {[%clk 0:03:05]} 3. d4 {[%clk 0:03:02]}  cxd4 {[%clk 0:03:06]}
4. Nxd4 {[%clk 0:03:02]}  Nf6 {[%clk 0:03:08]} 5. Nc3 {[%clk 0:03:03]}  a6 {[%clk 0:03:09]} 6. Bg5 {[%clk 0:03:03]}  e6 {[%clk 0:03:08]}
7. f4 {[%clk 0:03:03]}  h6 {[%clk 0:03:09]} 8. Bh4 {[%clk 0:03:04]}  Nbd7 {[%clk 0:03:09]} 9. Bd3 {[%clk 0:02:54]}  b5 {[%clk 0:03:08]}
10. a3 {[%clk 0:02:41]}  Bb7 {[%clk 0:02:57]} 11. Qe2 {[%clk 0:02:24]}  Be7 {[%clk 0:02:36]} 12. e5 {[%clk 0:02:19]}  dxe5 {[%clk 0:02:18]}
13. fxe5 {[%clk 0:02:19]}  Nd5 {[%clk 0:02:19]} 14. Bxe7 {[%clk 0:02:08]}  Nxc3 {[%clk 0:01:39]} 15. bxc3 {[%clk 0:01:59]}  Qxe7 {[%clk 0:01:42]}
16. O-O {[%clk 0:01:54]}  O-O {[%clk 0:01:31]} 17. a4 {[%clk 0:01:38]}  bxa4 {[%clk 0:01:26]} 18. Rxa4 {[%clk 0:01:24]}  Qc5 {[%clk 0:01:10]}
19. Rb4 {[%clk 0:01:20]}  Qxc3 {[%clk 0:01:06]} 20. Rxb7 {[%clk 0:01:18]}  Qxd4+ {[%clk 0:01:07]} 21. Kh1 {[%clk 0:01:19]}  Nxe5 {[%clk 0:01:05]}
22. Be4 {[%clk 0:01:03]}  a5 {[%clk 0:00:50]} 23. Rb3 {[%clk 0:00:59]}  Rad8 {[%clk 0:00:40]} 24. Rg3 {[%clk 0:00:53]}  g6 {[%clk 0:00:30]}
25. Bd3 {[%clk 0:00:38]}  Kh7 {[%clk 0:00:24]} 26. h3 {[%clk 0:00:36]}  a4 {[%clk 0:00:17]} 27. c3 {[%clk 0:00:34]}  Qc5 {[%clk 0:00:11]}
28. Bc2 {[%clk 0:00:24]}  a3 {[%clk 0:00:12]} 29. Bb1 {[%clk 0:00:19]}  Kg7 {[%clk 0:00:09]} 30. c4 {[%clk 0:00:15]}  Nxc4 {[%clk 0:00:07]}
31. Bxg6 {[%clk 0:00:13]}  fxg6 {[%clk 0:00:06]} 32. Qc2 {[%clk 0:00:05]}  Rxf1+ {[%clk 0:00:06]} 0-1

[Event "2026 Biel Blitz Open"]
[Site "Biel, CH"]
[Date "2026.07.19"]
[Round "12"]
[White "Hajduk, Tomasz"]
[Black "Tkhoruk, Roman"]
[Result "0-1"]
[Board "32"]
[TimeControl "180+2"]
[WhiteFideId "21811415"]
[BlackFideId "34161589"]
[WhiteElo "1791"]
[BlackElo "2055"]
[WhiteClock "0:00:29"]
[BlackClock "0:01:11"]
[Variant "Standard"]
[EndDate "2026.07.19"]
[EndTime "15:57:19"]

1. e4 {[%clk 0:03:02]}  c6 {[%clk 0:03:04]} 2. d4 {[%clk 0:03:03]}  d5 {[%clk 0:03:05]} 3. e5 {[%clk 0:03:04]}  Bf5 {[%clk 0:03:06]}
4. Nc3 {[%clk 0:03:05]}  e6 {[%clk 0:03:07]} 5. g4 {[%clk 0:03:06]}  Bg6 {[%clk 0:03:08]} 6. Nge2 {[%clk 0:03:07]}  c5 {[%clk 0:03:05]}
7. h4 {[%clk 0:03:07]}  h6 {[%clk 0:02:54]} 8. Nf4 {[%clk 0:03:07]}  Bh7 {[%clk 0:02:55]} 9. Bd3 {[%clk 0:03:08]}  Bxd3 {[%clk 0:02:53]}
10. Qxd3 {[%clk 0:03:09]}  Nc6 {[%clk 0:02:54]} 11. Be3 {[%clk 0:03:00]}  Qb6 {[%clk 0:02:37]} 12. dxc5 {[%clk 0:02:54]}  Bxc5 {[%clk 0:02:31]}
13. Bxc5 {[%clk 0:02:55]}  Qxc5 {[%clk 0:02:31]} 14. O-O-O {[%clk 0:02:44]}  Nge7 {[%clk 0:02:24]} 15. Qb5 {[%clk 0:02:34]}  Qxb5 {[%clk 0:02:09]}
16. Nxb5 {[%clk 0:02:34]}  O-O {[%clk 0:02:09]} 17. Rhe1 {[%clk 0:02:29]}  a6 {[%clk 0:02:02]} 18. Nc3 {[%clk 0:02:04]}  b5 {[%clk 0:01:57]}
19. g5 {[%clk 0:02:04]}  hxg5 {[%clk 0:01:54]} 20. hxg5 {[%clk 0:02:05]}  g6 {[%clk 0:01:55]} 21. Rd3 {[%clk 0:01:59]}  Kg7 {[%clk 0:01:53]}
22. a4 {[%clk 0:01:32]}  b4 {[%clk 0:01:51]} 23. Na2 {[%clk 0:01:28]}  a5 {[%clk 0:01:48]} 24. Kb1 {[%clk 0:01:29]}  Nf5 {[%clk 0:01:43]}
25. Nc1 {[%clk 0:01:28]}  Rh8 {[%clk 0:01:41]} 26. c3 {[%clk 0:01:15]}  Rh4 {[%clk 0:01:31]} 27. Ng2 {[%clk 0:01:06]}  Rg4 {[%clk 0:01:28]}
28. Ne3 {[%clk 0:01:00]}  Nxe3 {[%clk 0:01:21]} 29. Rexe3 {[%clk 0:00:48]}  Rxg5 {[%clk 0:01:22]} 30. cxb4 {[%clk 0:00:46]}  Nxb4 {[%clk 0:01:22]}
31. Rd4 {[%clk 0:00:40]}  Rg1 {[%clk 0:01:21]} 32. Rc3 {[%clk 0:00:39]}  Rh8 {[%clk 0:01:18]} 33. b3 {[%clk 0:00:30]}  Rhh1 {[%clk 0:01:17]}
34. Kb2 {[%clk 0:00:30]}  Rf1 {[%clk 0:01:14]} 35. Rf4 {[%clk 0:00:29]}  Rxc1 {[%clk 0:01:11]} 36. Rxc1 {[%clk 0:00:28]}  Rxc1 {[%clk 0:01:11]}
37. Kxc1 {[%clk 0:00:29]}  Nd3+ {[%clk 0:01:11]} 0-1

[Event "2026 Biel Blitz Open"]
[Site "Biel, CH"]
[Date "2026.07.19"]
[Round "12"]
[White "El-Mais, Ibaa"]
[Black "Aryan Goyal"]
[Result "0-1"]
[Board "33"]
[TimeControl "180+2"]
[WhiteFideId "1312715"]
[BlackFideId "366108825"]
[WhiteElo "2012"]
[BlackElo "1748"]
[WhiteClock "0:00:05"]
[BlackClock "0:00:09"]
[Variant "Standard"]
[EndDate "2026.07.19"]
[EndTime "16:03:00"]

1. d4 {[%clk 0:03:02]}  Nf6 {[%clk 0:03:04]} 2. Nf3 {[%clk 0:03:03]}  e6 {[%clk 0:03:05]} 3. Bf4 {[%clk 0:03:03]}  d5 {[%clk 0:03:06]}
4. e3 {[%clk 0:03:05]}  Bd6 {[%clk 0:03:07]} 5. Bg3 {[%clk 0:03:06]}  O-O {[%clk 0:03:08]} 6. Bd3 {[%clk 0:03:02]}  c5 {[%clk 0:03:09]}
7. c3 {[%clk 0:03:03]}  Qc7 {[%clk 0:03:07]} 8. Ne5 {[%clk 0:03:02]}  Nc6 {[%clk 0:03:05]} 9. f4 {[%clk 0:03:00]}  b6 {[%clk 0:03:01]}
10. Nd2 {[%clk 0:02:56]}  Bb7 {[%clk 0:02:58]} 11. Bh4 {[%clk 0:02:49]}  Be7 {[%clk 0:02:32]} 12. Bxf6 {[%clk 0:02:42]}  Bxf6 {[%clk 0:02:33]}
13. Qh5 {[%clk 0:02:43]}  g6 {[%clk 0:02:29]} 14. Qg4 {[%clk 0:02:32]}  cxd4 {[%clk 0:02:22]} 15. exd4 {[%clk 0:02:33]}  Ne7 {[%clk 0:02:11]}
16. h4 {[%clk 0:02:25]}  h5 {[%clk 0:02:01]} 17. Qe2 {[%clk 0:01:53]}  Nf5 {[%clk 0:01:59]} 18. Qf2 {[%clk 0:01:47]}  Qe7 {[%clk 0:01:57]}
19. g3 {[%clk 0:01:46]}  Bxe5 {[%clk 0:01:45]} 20. fxe5 {[%clk 0:01:41]}  f6 {[%clk 0:01:40]} 21. Bxf5 {[%clk 0:00:54]}  exf5 {[%clk 0:01:39]}
22. Nf3 {[%clk 0:00:50]}  Ba6 {[%clk 0:01:16]} 23. O-O-O {[%clk 0:00:47]}  b5 {[%clk 0:01:16]} 24. a3 {[%clk 0:00:42]}  Rac8 {[%clk 0:01:14]}
25. Kb1 {[%clk 0:00:43]}  Bb7 {[%clk 0:01:13]} 26. Rde1 {[%clk 0:00:38]}  a5 {[%clk 0:01:11]} 27. exf6 {[%clk 0:00:37]}  Qxf6 {[%clk 0:01:12]}
28. Ne5 {[%clk 0:00:27]}  Rc7 {[%clk 0:01:05]} 29. Qd2 {[%clk 0:00:28]}  Kg7 {[%clk 0:01:02]} 30. Re2 {[%clk 0:00:19]}  Ba6 {[%clk 0:01:00]}
31. Re3 {[%clk 0:00:19]}  Rb8 {[%clk 0:00:49]} 32. Nd3 {[%clk 0:00:19]}  b4 {[%clk 0:00:33]} 33. Nc5 {[%clk 0:00:15]}  Bc8 {[%clk 0:00:33]}
34. cxb4 {[%clk 0:00:12]}  axb4 {[%clk 0:00:34]} 35. axb4 {[%clk 0:00:13]}  f4 {[%clk 0:00:27]} 36. gxf4 {[%clk 0:00:06]}  Bf5+ {[%clk 0:00:29]}
37. Nd3 {[%clk 0:00:07]}  Rbc8 {[%clk 0:00:25]} 38. Rhe1 {[%clk 0:00:07]}  Rc2 {[%clk 0:00:24]} 39. Qxc2 {[%clk 0:00:06]}  Rxc2 {[%clk 0:00:25]}
40. Kxc2 {[%clk 0:00:06]}  Qxh4 {[%clk 0:00:13]} 41. Kc3 {[%clk 0:00:05]}  Qd8 {[%clk 0:00:09]} 42. Re7+ {[%clk 0:00:05]}  Kh6 {[%clk 0:00:09]}
43. Nc5 {[%clk 0:00:03]}  h4 {[%clk 0:00:06]} 44. b5 {[%clk 0:00:04]}  Qa5+ {[%clk 0:00:07]} 45. b4 {[%clk 0:00:04]}  Qxb5 {[%clk 0:00:07]}
46. Rb7 {[%clk 0:00:04]}  Qc4+ {[%clk 0:00:08]} 47. Kb2 {[%clk 0:00:04]}  Qxd4+ {[%clk 0:00:08]} 48. Ka3 {[%clk 0:00:05]}  Qc3+ {[%clk 0:00:09]} 0-1

[Event "2026 Biel Blitz Open"]
[Site "Biel, CH"]
[Date "2026.07.19"]
[Round "12"]
[White "Python, Noe"]
[Black "Lupei, Denis"]
[Result "1-0"]
[Board "34"]
[TimeControl "180+2"]
[WhiteFideId "1337637"]
[BlackFideId "34611231"]
[WhiteElo "2010"]
[BlackElo "1890"]
[WhiteClock "0:01:03"]
[BlackClock "0:00:28"]
[Variant "Standard"]
[EndDate "2026.07.19"]
[EndTime "15:56:52"]

1. e4 {[%clk 0:03:04]}  c6 {[%clk 0:03:04]} 2. d4 {[%clk 0:03:05]}  d5 {[%clk 0:03:05]} 3. Nd2 {[%clk 0:03:06]}  dxe4 {[%clk 0:03:06]}
4. Nxe4 {[%clk 0:03:07]}  Nf6 {[%clk 0:03:07]} 5. Nxf6+ {[%clk 0:03:08]}  exf6 {[%clk 0:03:08]} 6. c3 {[%clk 0:03:09]}  Bd6 {[%clk 0:03:09]}
7. Bd3 {[%clk 0:03:10]}  O-O {[%clk 0:03:09]} 8. Qc2 {[%clk 0:03:11]}  h5 {[%clk 0:03:10]} 9. Ne2 {[%clk 0:03:09]}  Re8 {[%clk 0:03:11]}
10. O-O {[%clk 0:03:08]}  Nd7 {[%clk 0:03:09]} 11. Ng3 {[%clk 0:03:09]}  h4 {[%clk 0:03:07]} 12. Nf5 {[%clk 0:03:10]}  Qc7 {[%clk 0:02:57]}
13. h3 {[%clk 0:02:59]}  g5 {[%clk 0:02:37]} 14. Qd1 {[%clk 0:02:51]}  Nf8 {[%clk 0:01:58]} 15. Nxd6 {[%clk 0:01:55]}  Qxd6 {[%clk 0:01:58]}
16. Qh5 {[%clk 0:01:51]}  Ne6 {[%clk 0:01:14]} 17. Re1 {[%clk 0:01:32]}  Bd7 {[%clk 0:01:05]} 18. Qh6 {[%clk 0:01:03]}  Nf8 {[%clk 0:00:28]}
19. Bxg5 {[%clk 0:01:03]} 1-0

[Event "2026 Biel Blitz Open"]
[Site "Biel, CH"]
[Date "2026.07.19"]
[Round "12"]
[White "Leuthold, Cyrill"]
[Black "Dietiker, Manuel"]
[Result "0-1"]
[Board "35"]
[TimeControl "180+2"]
[WhiteFideId "1333011"]
[BlackFideId "1317377"]
[WhiteElo "1887"]
[BlackElo "2002"]
[WhiteClock "0:00:03"]
[BlackClock "0:01:13"]
[Variant "Standard"]
[EndDate "2026.07.19"]
[EndTime "16:04:58"]

1. d4 {[%clk 0:03:02]}  Nf6 {[%clk 0:03:03]} 2. Nf3 {[%clk 0:03:02]}  g6 {[%clk 0:03:04]} 3. Nc3 {[%clk 0:03:02]}  Bg7 {[%clk 0:03:04]}
4. e4 {[%clk 0:03:03]}  d6 {[%clk 0:03:05]} 5. Be3 {[%clk 0:03:00]}  h6 {[%clk 0:03:04]} 6. Qd2 {[%clk 0:02:58]}  Nbd7 {[%clk 0:02:57]}
7. h3 {[%clk 0:02:32]}  a6 {[%clk 0:02:45]} 8. O-O-O {[%clk 0:02:23]}  e6 {[%clk 0:02:40]} 9. e5 {[%clk 0:02:12]}  Nd5 {[%clk 0:02:33]}
10. Nxd5 {[%clk 0:02:05]}  exd5 {[%clk 0:02:34]} 11. exd6 {[%clk 0:02:04]}  cxd6 {[%clk 0:02:33]} 12. Bf4 {[%clk 0:02:02]}  Nf6 {[%clk 0:02:30]}
13. Bd3 {[%clk 0:01:44]}  Be6 {[%clk 0:02:24]} 14. Rhe1 {[%clk 0:01:38]}  g5 {[%clk 0:02:20]} 15. Bh2 {[%clk 0:01:27]}  O-O {[%clk 0:02:15]}
16. Kb1 {[%clk 0:00:55]}  Qd7 {[%clk 0:02:16]} 17. c3 {[%clk 0:00:40]}  b5 {[%clk 0:02:17]} 18. h4 {[%clk 0:00:24]}  g4 {[%clk 0:02:15]}
19. Ng1 {[%clk 0:00:25]}  Ne4 {[%clk 0:02:16]} 20. Bxe4 {[%clk 0:00:20]}  dxe4 {[%clk 0:02:17]} 21. d5 {[%clk 0:00:17]}  Bf5 {[%clk 0:02:17]}
22. Ka1 {[%clk 0:00:16]}  a5 {[%clk 0:02:13]} 23. Bf4 {[%clk 0:00:16]}  Kh7 {[%clk 0:02:12]} 24. Ne2 {[%clk 0:00:16]}  b4 {[%clk 0:01:52]}
25. Nd4 {[%clk 0:00:12]}  Bg6 {[%clk 0:01:30]} 26. h5 {[%clk 0:00:10]}  Bf5 {[%clk 0:01:32]} 27. Nxf5 {[%clk 0:00:06]}  Qxf5 {[%clk 0:01:32]}
28. g3 {[%clk 0:00:06]}  bxc3 {[%clk 0:01:32]} 29. bxc3 {[%clk 0:00:06]}  Rfc8 {[%clk 0:01:33]} 30. Rc1 {[%clk 0:00:07]}  Qf6 {[%clk 0:01:29]}
31. Re3 {[%clk 0:00:04]}  Rc4 {[%clk 0:01:29]} 32. Qb2 {[%clk 0:00:03]}  Rac8 {[%clk 0:01:28]} 33. Kb1 {[%clk 0:00:03]}  Qd8 {[%clk 0:01:13]}
34. Kc2 {[%clk 0:00:00]} 0-1

[Event "2026 Biel Blitz Open"]
[Site "Biel, CH"]
[Date "2026.07.19"]
[Round "12"]
[White "Haugner, Jan"]
[Black "Hirt, Markus"]
[Result "1-0"]
[Board "36"]
[TimeControl "180+2"]
[WhiteFideId "24655244"]
[BlackFideId "1302582"]
[WhiteElo "1976"]
[BlackElo "1880"]
[WhiteClock "0:01:13"]
[BlackClock "0:01:04"]
[Variant "Standard"]
[EndDate "2026.07.19"]
[EndTime "15:57:06"]

1. e4 {[%clk 0:03:01]}  Nf6 {[%clk 0:03:03]} 2. e5 {[%clk 0:03:02]}  Nd5 {[%clk 0:03:04]} 3. c4 {[%clk 0:03:03]}  Nb6 {[%clk 0:03:05]}
4. d4 {[%clk 0:03:05]}  d6 {[%clk 0:03:06]} 5. f4 {[%clk 0:03:06]}  g6 {[%clk 0:03:07]} 6. Nc3 {[%clk 0:03:00]}  Bg7 {[%clk 0:03:07]}
7. Be3 {[%clk 0:02:57]}  Be6 {[%clk 0:03:08]} 8. b3 {[%clk 0:02:45]}  O-O {[%clk 0:03:03]} 9. Be2 {[%clk 0:02:43]}  c5 {[%clk 0:02:50]}
10. d5 {[%clk 0:02:41]}  Bc8 {[%clk 0:02:47]} 11. Nf3 {[%clk 0:02:33]}  e6 {[%clk 0:02:44]} 12. O-O {[%clk 0:02:25]}  exd5 {[%clk 0:02:33]}
13. cxd5 {[%clk 0:02:17]}  N8d7 {[%clk 0:02:20]} 14. Rc1 {[%clk 0:01:47]}  dxe5 {[%clk 0:02:16]} 15. fxe5 {[%clk 0:01:48]}  Nxe5 {[%clk 0:01:49]}
16. Bxc5 {[%clk 0:01:47]}  Re8 {[%clk 0:01:45]} 17. Bb5 {[%clk 0:01:22]}  Nbd7 {[%clk 0:01:37]} 18. Bd4 {[%clk 0:01:16]}  Nxf3+ {[%clk 0:01:19]}
19. Rxf3 {[%clk 0:01:16]}  a6 {[%clk 0:01:09]} 20. Bxg7 {[%clk 0:01:14]}  Kxg7 {[%clk 0:01:09]} 21. Qd4+ {[%clk 0:01:13]}  Qf6 {[%clk 0:01:04]}
22. Rxf6 {[%clk 0:01:13]} 1-0

[Event "2026 Biel Blitz Open"]
[Site "Biel, CH"]
[Date "2026.07.19"]
[Round "12"]
[White "Kutonov, Yehor"]
[Black "Kwiatkowski, Maciej"]
[Result "0-1"]
[Board "37"]
[TimeControl "180+2"]
[WhiteFideId "1364804"]
[BlackFideId "1360175"]
[WhiteElo "1805"]
[BlackElo "1967"]
[WhiteClock "0:00:03"]
[BlackClock "0:00:55"]
[Variant "Standard"]
[EndDate "2026.07.19"]
[EndTime "15:57:28"]

1. d4 {[%clk 0:03:02]}  Nf6 {[%clk 0:03:03]} 2. c4 {[%clk 0:03:03]}  e6 {[%clk 0:03:04]} 3. Nf3 {[%clk 0:03:04]}  d5 {[%clk 0:03:05]}
4. Nc3 {[%clk 0:03:04]}  c6 {[%clk 0:03:04]} 5. e3 {[%clk 0:03:05]}  Be7 {[%clk 0:03:03]} 6. Qc2 {[%clk 0:03:02]}  O-O {[%clk 0:03:02]}
7. Bd3 {[%clk 0:03:07]}  dxc4 {[%clk 0:02:55]} 8. Bxc4 {[%clk 0:03:08]}  Nbd7 {[%clk 0:02:56]} 9. O-O {[%clk 0:03:05]}  a6 {[%clk 0:02:56]}
10. a3 {[%clk 0:02:49]}  b5 {[%clk 0:02:56]} 11. Bd3 {[%clk 0:02:50]}  c5 {[%clk 0:02:48]} 12. e4 {[%clk 0:02:27]}  cxd4 {[%clk 0:02:31]}
13. Nxd4 {[%clk 0:02:25]}  Bb7 {[%clk 0:02:32]} 14. Nf3 {[%clk 0:01:38]}  Nc5 {[%clk 0:02:11]} 15. Rd1 {[%clk 0:01:24]}  Nxd3 {[%clk 0:02:10]}
16. Rxd3 {[%clk 0:01:23]}  Qc7 {[%clk 0:02:08]} 17. Re3 {[%clk 0:01:09]}  Rac8 {[%clk 0:01:59]} 18. h3 {[%clk 0:01:06]}  a5 {[%clk 0:01:39]}
19. Qe2 {[%clk 0:00:42]}  b4 {[%clk 0:01:38]} 20. Nb5 {[%clk 0:00:25]}  Qb6 {[%clk 0:01:35]} 21. Nbd4 {[%clk 0:00:16]}  Rfd8 {[%clk 0:01:20]}
22. Nc2 {[%clk 0:00:10]}  Qc6 {[%clk 0:01:13]} 23. Ncd4 {[%clk 0:00:07]}  Qb6 {[%clk 0:01:14]} 24. Nc2 {[%clk 0:00:08]}  Bc5 {[%clk 0:01:06]}
25. Rb3 {[%clk 0:00:06]}  Bxe4 {[%clk 0:01:03]} 26. Ne3 {[%clk 0:00:04]}  Bg6 {[%clk 0:00:57]} 27. axb4 {[%clk 0:00:05]}  axb4 {[%clk 0:00:57]}
28. Nc4 {[%clk 0:00:03]}  Qb5 {[%clk 0:00:55]} 29. Kf1 {[%clk 0:00:00]} 0-1

[Event "2026 Biel Blitz Open"]
[Site "Biel, CH"]
[Date "2026.07.19"]
[Round "12"]
[White "Damen, Josephine"]
[Black "Habibi, Ali"]
[Result "0-1"]
[Board "38"]
[TimeControl "180+2"]
[WhiteFideId "1074369"]
[BlackFideId "4604393"]
[WhiteElo "1766"]
[BlackElo "2116"]
[WhiteTitle "WCM"]
[BlackTitle "IM"]
[WhiteClock "0:00:07"]
[BlackClock "0:01:59"]
[Variant "Standard"]
[EndDate "2026.07.19"]
[EndTime "15:55:47"]

1. e4 {[%clk 0:03:03]}  c5 {[%clk 0:03:04]} 2. Nf3 {[%clk 0:03:04]}  a6 {[%clk 0:03:05]} 3. Nc3 {[%clk 0:03:05]}  e6 {[%clk 0:03:05]}
4. d4 {[%clk 0:03:02]}  cxd4 {[%clk 0:03:06]} 5. Nxd4 {[%clk 0:03:04]}  d6 {[%clk 0:03:05]} 6. Be3 {[%clk 0:03:03]}  Qc7 {[%clk 0:03:06]}
7. Qd2 {[%clk 0:03:02]}  Nf6 {[%clk 0:03:06]} 8. f3 {[%clk 0:03:03]}  Be7 {[%clk 0:03:06]} 9. O-O-O {[%clk 0:03:02]}  O-O {[%clk 0:03:03]}
10. g4 {[%clk 0:02:42]}  b5 {[%clk 0:03:07]} 11. h4 {[%clk 0:02:21]}  Bb7 {[%clk 0:02:57]} 12. Bd3 {[%clk 0:01:58]}  Nbd7 {[%clk 0:02:52]}
13. h5 {[%clk 0:01:54]}  Ne5 {[%clk 0:02:52]} 14. g5 {[%clk 0:01:44]}  Nfd7 {[%clk 0:02:50]} 15. f4 {[%clk 0:01:24]}  Nxd3+ {[%clk 0:02:50]}
16. Qxd3 {[%clk 0:01:21]}  Rfc8 {[%clk 0:02:45]} 17. g6 {[%clk 0:01:04]}  Nc5 {[%clk 0:02:39]} 18. gxh7+ {[%clk 0:00:40]}  Kh8 {[%clk 0:02:39]}
19. Qf1 {[%clk 0:00:18]}  b4 {[%clk 0:02:40]} 20. Nce2 {[%clk 0:00:08]}  Bxe4 {[%clk 0:02:32]} 21. Rg1 {[%clk 0:00:06]}  b3 {[%clk 0:02:21]}
22. c3 {[%clk 0:00:06]}  bxa2 {[%clk 0:02:18]} 23. Kd2 {[%clk 0:00:06]}  Bxh7 {[%clk 0:01:59]} 24. Qf2 {[%clk 0:00:07]}  Ne4+ {[%clk 0:01:59]} 0-1

[Event "2026 Biel Blitz Open"]
[Site "Biel, CH"]
[Date "2026.07.19"]
[Round "12"]
[White "Jaggy, Enzo"]
[Black "Marinkovic, Zoran"]
[Result "0-1"]
[Board "39"]
[TimeControl "180+2"]
[WhiteFideId "1344919"]
[BlackFideId "1346083"]
[WhiteElo "1761"]
[BlackElo "2037"]
[WhiteClock "0:00:44"]
[BlackClock "0:00:16"]
[Variant "Standard"]
[EndDate "2026.07.19"]
[EndTime "16:04:44"]

1. d4 {[%clk 0:03:02]}  e6 {[%clk 0:03:02]} 2. Nf3 {[%clk 0:03:03]}  d5 {[%clk 0:03:01]} 3. e3 {[%clk 0:03:03]}  Nf6 {[%clk 0:03:02]}
4. Bd3 {[%clk 0:03:04]}  Nbd7 {[%clk 0:03:00]} 5. Nbd2 {[%clk 0:03:05]}  c5 {[%clk 0:03:00]} 6. c3 {[%clk 0:03:06]}  Bd6 {[%clk 0:02:51]}
7. O-O {[%clk 0:03:00]}  O-O {[%clk 0:02:45]} 8. Re1 {[%clk 0:03:02]}  e5 {[%clk 0:02:33]} 9. dxe5 {[%clk 0:03:02]}  Nxe5 {[%clk 0:02:32]}
10. Nxe5 {[%clk 0:03:03]}  Bxe5 {[%clk 0:02:32]} 11. Nf3 {[%clk 0:03:04]}  Bc7 {[%clk 0:02:26]} 12. h3 {[%clk 0:02:49]}  h6 {[%clk 0:02:27]}
13. c4 {[%clk 0:02:37]}  Be6 {[%clk 0:02:11]} 14. cxd5 {[%clk 0:02:34]}  Bxd5 {[%clk 0:02:00]} 15. b3 {[%clk 0:02:25]}  Qd6 {[%clk 0:01:32]}
16. e4 {[%clk 0:02:09]}  Bxe4 {[%clk 0:01:06]} 17. Bxe4 {[%clk 0:02:02]}  Qxd1 {[%clk 0:01:07]} 18. Rxd1 {[%clk 0:02:03]}  Nxe4 {[%clk 0:01:08]}
19. Rd7 {[%clk 0:01:55]}  Rac8 {[%clk 0:01:10]} 20. Be3 {[%clk 0:01:53]}  Nf6 {[%clk 0:01:02]} 21. Re7 {[%clk 0:01:50]}  Nd5 {[%clk 0:00:55]}
22. Rd7 {[%clk 0:01:35]}  Nxe3 {[%clk 0:00:53]} 23. fxe3 {[%clk 0:01:36]}  Rfd8 {[%clk 0:00:44]} 24. Rad1 {[%clk 0:01:37]}  Rxd7 {[%clk 0:00:42]}
25. Rxd7 {[%clk 0:01:38]}  Kf8 {[%clk 0:00:43]} 26. Kf2 {[%clk 0:01:17]}  Ke8 {[%clk 0:00:44]} 27. Rd5 {[%clk 0:01:18]}  b6 {[%clk 0:00:44]}
28. Ne5 {[%clk 0:01:13]}  Bxe5 {[%clk 0:00:36]} 29. Rxe5+ {[%clk 0:01:14]}  Kd7 {[%clk 0:00:37]} 30. Kf3 {[%clk 0:01:09]}  c4 {[%clk 0:00:36]}
31. bxc4 {[%clk 0:01:07]}  Rxc4 {[%clk 0:00:37]} 32. Rd5+ {[%clk 0:01:04]}  Ke6 {[%clk 0:00:38]} 33. Rd8 {[%clk 0:01:05]}  Ra4 {[%clk 0:00:35]}
34. Rd2 {[%clk 0:01:01]}  f5 {[%clk 0:00:35]} 35. g4 {[%clk 0:01:01]}  g6 {[%clk 0:00:28]} 36. Rc2 {[%clk 0:01:02]}  Ke5 {[%clk 0:00:27]}
37. gxf5 {[%clk 0:01:01]}  gxf5 {[%clk 0:00:28]} 38. Rd2 {[%clk 0:00:55]}  Ra3 {[%clk 0:00:29]} 39. Rd8 {[%clk 0:00:52]}  Rxa2 {[%clk 0:00:21]}
40. Re8+ {[%clk 0:00:53]}  Kf6 {[%clk 0:00:21]} 41. Kf4 {[%clk 0:00:48]}  Ra4+ {[%clk 0:00:21]} 42. Kf3 {[%clk 0:00:49]}  a5 {[%clk 0:00:18]}
43. Rh8 {[%clk 0:00:48]}  Kg7 {[%clk 0:00:19]} 44. Rb8 {[%clk 0:00:49]}  Rb4 {[%clk 0:00:20]} 45. Rb7+ {[%clk 0:00:46]}  Kg6 {[%clk 0:00:21]}
46. h4 {[%clk 0:00:43]}  a4 {[%clk 0:00:22]} 47. Ra7 {[%clk 0:00:40]}  b5 {[%clk 0:00:23]} 48. Ra5 {[%clk 0:00:41]}  Kh5 {[%clk 0:00:20]}
49. Kg3 {[%clk 0:00:40]}  Rg4+ {[%clk 0:00:20]} 50. Kf3 {[%clk 0:00:39]}  Rb4 {[%clk 0:00:20]} 51. Kg3 {[%clk 0:00:41]}  Rb3 {[%clk 0:00:21]}
52. Kf4 {[%clk 0:00:41]}  a3 {[%clk 0:00:20]} 53. Kxf5 {[%clk 0:00:42]}  b4 {[%clk 0:00:20]} 54. Ke4+ {[%clk 0:00:43]}  Kxh4 {[%clk 0:00:20]}
55. Ra4 {[%clk 0:00:44]}  Rb2 {[%clk 0:00:20]} 56. Kd3 {[%clk 0:00:45]}  Kg5 {[%clk 0:00:16]} 57. e4 {[%clk 0:00:46]}  a2 {[%clk 0:00:15]}
58. Kc4 {[%clk 0:00:44]}  b3 {[%clk 0:00:15]} 59. Kc3 {[%clk 0:00:44]}  Rb1 {[%clk 0:00:16]} 0-1